[Event "*** Titled Tuesday Blitz"]
[Site "Chess.com"]
[Date "2020.04.21"]
[Round "7"]
[White "mortngabriel"]
[Black "mjray79"]
[Result "1-0"]
[WhiteElo "2442"]
[BlackElo "2263"]
[TimeControl "180+1"]
[EndTime "11:18:55 PDT"]
[Termination "mortngabriel won by checkmate"]

1. Nf3 {[%clk 0:03:00.9]} 1... Nf6 {[%clk 0:02:59.3]} 2. g3 {[%clk 0:02:58.9]}
2... g6 {[%clk 0:03:00.2]} 3. Bg2 {[%clk 0:02:59.5]} 3... Bg7 {[%clk 0:03:01]}
4. O-O {[%clk 0:03:00.4]} 4... O-O {[%clk 0:03:01.9]} 5. d4 {[%clk 0:03:01.3]}
5... d6 {[%clk 0:03:02.6]} 6. c4 {[%clk 0:02:58.7]} 6... Nc6 {[%clk 0:03:02.4]}
7. Nc3 {[%clk 0:02:57.9]} 7... a6 {[%clk 0:03:02.5]} 8. e4 {[%clk 0:02:48.8]}
8... e5 {[%clk 0:02:55]} 9. dxe5 {[%clk 0:02:48.1]} 9... dxe5 {[%clk 0:02:55.9]}
10. Qxd8 {[%clk 0:02:48.2]} 10... Rxd8 {[%clk 0:02:56.8]} 11. Bg5 {[%clk
0:02:43.7]} 11... Be6 {[%clk 0:02:34]} 12. Nd5 {[%clk 0:02:22.1]} 12... Bxd5
{[%clk 0:02:23.6]} 13. cxd5 {[%clk 0:02:21.1]} 13... Nd4 {[%clk 0:02:09.5]} 14.
Nxd4 {[%clk 0:02:20.4]} 14... exd4 {[%clk 0:02:07.9]} 15. e5 {[%clk 0:02:02.3]}
15... h6 {[%clk 0:02:05.4]} 16. Bxf6 {[%clk 0:01:59.8]} 16... Bxf6 {[%clk
0:02:04.2]} 17. exf6 {[%clk 0:02:00]} 17... c6 {[%clk 0:02:05.1]} 18. dxc6
{[%clk 0:01:59.8]} 18... bxc6 {[%clk 0:02:06]} 19. Bxc6 {[%clk 0:02:00.2]} 19...
Rab8 {[%clk 0:02:06.9]} 20. b3 {[%clk 0:02:00.1]} 20... Rd6 {[%clk 0:02:05.1]}
21. Bg2 {[%clk 0:01:56.4]} 21... Rxf6 {[%clk 0:02:06]} 22. Rad1 {[%clk
0:01:56.7]} 22... Rd8 {[%clk 0:02:05.8]} 23. Rd3 {[%clk 0:01:57.2]} 23... Re6
{[%clk 0:02:04.6]} 24. Rfd1 {[%clk 0:01:57.8]} 24... Re2 {[%clk 0:02:04.2]} 25.
Rxd4 {[%clk 0:01:57]} 25... Rxd4 {[%clk 0:02:01.2]} 26. Rxd4 {[%clk 0:01:57.9]}
26... Rxa2 {[%clk 0:02:01.2]} 27. Ra4 {[%clk 0:01:58.4]} 27... Rxa4 {[%clk
0:02:00.3]} 28. bxa4 {[%clk 0:01:58.4]} 28... Kf8 {[%clk 0:02:01.2]} 29. Bb7
{[%clk 0:01:56]} 29... a5 {[%clk 0:02:02.1]} 30. Bc6 {[%clk 0:01:56.4]} 30...
Ke7 {[%clk 0:02:01.2]} 31. f4 {[%clk 0:01:56.8]} 31... Kd6 {[%clk 0:02:01.2]}
32. Bb5 {[%clk 0:01:57.7]} 32... Kc5 {[%clk 0:02:00.8]} 33. Kf2 {[%clk
0:01:58.6]} 33... Kb4 {[%clk 0:02:01.2]} 34. Ke3 {[%clk 0:01:58.7]} 34... g5
{[%clk 0:02:01.6]} 35. fxg5 {[%clk 0:01:58.5]} 35... hxg5 {[%clk 0:02:02.4]} 36.
h4 {[%clk 0:01:59.4]} 36... f5 {[%clk 0:02:03]} 37. hxg5 {[%clk 0:01:59.2]}
37... f4+ {[%clk 0:02:03.9]} 38. Kxf4 {[%clk 0:02:00.1]} 38... Ka3 {[%clk
0:02:04.3]} 39. Ke5 {[%clk 0:02:01]} 39... Kb2 {[%clk 0:02:04.8]} 40. g6 {[%clk
0:02:01.9]} 40... Ka2 {[%clk 0:02:05.6]} 41. g7 {[%clk 0:02:02.8]} 41... Ka1
{[%clk 0:02:06.5]} 42. g8=Q {[%clk 0:02:03.7]} 42... Kb2 {[%clk 0:02:07.2]} 43.
Qc4 {[%clk 0:02:03.3]} 43... Kb1 {[%clk 0:02:08.1]} 44. Qe2 {[%clk 0:02:02.9]}
44... Ka1 {[%clk 0:02:09]} 45. Kd4 {[%clk 0:02:03.8]} 45... Kb1 {[%clk 0:02:08]}
46. Kc3 {[%clk 0:02:04.7]} 46... Ka1 {[%clk 0:02:08.3]} 47. Qb2# {[%clk
0:02:05.6]} 1-0

[Event "*** Titled Tuesday Blitz"]
[Site "Chess.com"]
[Date "2020.04.21"]
[Round "7"]
[White "MaxVavulin"]
[Black "JonahWillow"]
[Result "0-1"]
[WhiteElo "2581"]
[BlackElo "2756"]
[TimeControl "180+1"]
[EndTime "11:18:57 PDT"]
[Termination "JonahWillow won by resignation"]

1. e4 {[%clk 0:03:00.9]} 1... c5 {[%clk 0:02:59.5]} 2. Nf3 {[%clk 0:03:00.4]}
2... Nc6 {[%clk 0:02:59.1]} 3. d4 {[%clk 0:02:59.3]} 3... cxd4 {[%clk 0:03:00]}
4. Nxd4 {[%clk 0:02:59.9]} 4... g6 {[%clk 0:03:00.9]} 5. Nc3 {[%clk 0:02:59.5]}
5... Bg7 {[%clk 0:03:01.1]} 6. Be3 {[%clk 0:03:00.2]} 6... Nf6 {[%clk
0:03:01.7]} 7. Bc4 {[%clk 0:03:00.3]} 7... O-O {[%clk 0:02:58.1]} 8. Bb3 {[%clk
0:02:57.6]} 8... d6 {[%clk 0:02:56.3]} 9. h3 {[%clk 0:02:57.1]} 9... Na5 {[%clk
0:02:51.8]} 10. O-O {[%clk 0:02:54.3]} 10... a6 {[%clk 0:02:51.4]} 11. Qf3
{[%clk 0:02:48.6]} 11... Bd7 {[%clk 0:02:43.2]} 12. Rad1 {[%clk 0:02:46.6]}
12... Rc8 {[%clk 0:02:30.1]} 13. Rfe1 {[%clk 0:02:45.8]} 13... Qc7 {[%clk
0:02:18.3]} 14. Bg5 {[%clk 0:02:42.7]} 14... Bc6 {[%clk 0:02:11.1]} 15. Qg3
{[%clk 0:02:03.9]} 15... Nxb3 {[%clk 0:02:00.6]} 16. cxb3 {[%clk 0:01:56.2]}
16... Qa5 {[%clk 0:01:58.2]} 17. Nxc6 {[%clk 0:01:44.4]} 17... bxc6 {[%clk
0:01:44.1]} 18. Qf3 {[%clk 0:01:10.8]} 18... Qxg5 {[%clk 0:01:36.9]} 0-1

[Event "*** Titled Tuesday Blitz"]
[Site "Chess.com"]
[Date "2020.04.21"]
[Round "7"]
[White "hellokostya"]
[Black "annamaja"]
[Result "1-0"]
[WhiteElo "2478"]
[BlackElo "2233"]
[TimeControl "180+1"]
[EndTime "11:19:01 PDT"]
[Termination "hellokostya won by checkmate"]

1. d4 {[%clk 0:03:00.9]} 1... Nf6 {[%clk 0:02:59.3]} 2. c4 {[%clk 0:03:00.7]}
2... e6 {[%clk 0:02:58.6]} 3. Nf3 {[%clk 0:03:00.1]} 3... d5 {[%clk 0:02:56.5]}
4. Nc3 {[%clk 0:02:58.6]} 4... a6 {[%clk 0:02:53.3]} 5. cxd5 {[%clk 0:02:57.9]}
5... exd5 {[%clk 0:02:53.6]} 6. Bf4 {[%clk 0:02:58.2]} 6... Bd6 {[%clk 0:02:48]}
7. Be5 {[%clk 0:02:58.1]} 7... c6 {[%clk 0:02:39]} 8. e3 {[%clk 0:02:57.2]} 8...
O-O {[%clk 0:02:36.8]} 9. Bd3 {[%clk 0:02:56.2]} 9... Bg4 {[%clk 0:02:27]} 10.
Qc2 {[%clk 0:02:53.8]} 10... h6 {[%clk 0:02:10.3]} 11. h3 {[%clk 0:02:51.2]}
11... Bxf3 {[%clk 0:02:05.2]} 12. gxf3 {[%clk 0:02:52.1]} 12... Bxe5 {[%clk
0:02:02.6]} 13. dxe5 {[%clk 0:02:51.8]} 13... Nfd7 {[%clk 0:02:00.4]} 14. f4
{[%clk 0:02:50.8]} 14... Nc5 {[%clk 0:01:46.1]} 15. O-O-O {[%clk 0:02:49.9]}
15... Nxd3+ {[%clk 0:01:43.5]} 16. Qxd3 {[%clk 0:02:48.3]} 16... Nd7 {[%clk
0:01:41.2]} 17. Rhg1 {[%clk 0:02:47.8]} 17... Qh4 {[%clk 0:01:32.9]} 18. Rg4
{[%clk 0:02:42.9]} 18... Qxh3 {[%clk 0:00:53.9]} 19. Rdg1 {[%clk 0:02:42.1]}
19... g5 {[%clk 0:00:52]} 20. Qf5 {[%clk 0:02:33.6]} 20... Kh8 {[%clk
0:00:28.3]} 21. Qxd7 {[%clk 0:02:26]} 21... h5 {[%clk 0:00:28.4]} 22. Rxg5
{[%clk 0:02:22.3]} 22... Qxd7 {[%clk 0:00:19.8]} 23. Rxh5# {[%clk 0:02:22.2]}
1-0

[Event "*** Titled Tuesday Blitz"]
[Site "Chess.com"]
[Date "2020.04.21"]
[Round "7"]
[White "vlad_Sid"]
[Black "ViktoriyaTarasova"]
[Result "1-0"]
[WhiteElo "2629"]
[BlackElo "2410"]
[TimeControl "180+1"]
[EndTime "11:19:16 PDT"]
[Termination "vlad_Sid won by resignation"]

1. c4 {[%clk 0:03:00.9]} 1... c5 {[%clk 0:02:59]} 2. g3 {[%clk 0:03:01.1]} 2...
Nc6 {[%clk 0:02:58]} 3. Bg2 {[%clk 0:03:01.5]} 3... e5 {[%clk 0:02:58.5]} 4. Nc3
{[%clk 0:03:02]} 4... g6 {[%clk 0:02:58.5]} 5. Nf3 {[%clk 0:03:02.6]} 5... Bg7
{[%clk 0:02:58.6]} 6. O-O {[%clk 0:03:02.7]} 6... Nge7 {[%clk 0:02:58.6]} 7. Ne1
{[%clk 0:03:03.2]} 7... O-O {[%clk 0:02:57.6]} 8. Nc2 {[%clk 0:03:03.6]} 8... d6
{[%clk 0:02:58]} 9. a3 {[%clk 0:03:02.6]} 9... a5 {[%clk 0:02:55.9]} 10. Rb1
{[%clk 0:03:02.2]} 10... Be6 {[%clk 0:02:55.9]} 11. Ne3 {[%clk 0:03:02.2]} 11...
Rb8 {[%clk 0:02:50.3]} 12. d3 {[%clk 0:02:59.8]} 12... Qd7 {[%clk 0:02:39.2]}
13. Re1 {[%clk 0:02:54.4]} 13... Nd4 {[%clk 0:02:34]} 14. b4 {[%clk 0:02:46.7]}
14... axb4 {[%clk 0:02:33.9]} 15. axb4 {[%clk 0:02:47.6]} 15... b5 {[%clk
0:02:26.5]} 16. bxc5 {[%clk 0:02:42.3]} 16... b4 {[%clk 0:01:45.2]} 17. Ne4
{[%clk 0:02:25.3]} 17... d5 {[%clk 0:01:33.6]} 18. cxd5 {[%clk 0:02:21.2]} 18...
Nxd5 {[%clk 0:01:31.5]} 19. Nxd5 {[%clk 0:02:13.3]} 19... Bxd5 {[%clk
0:01:30.5]} 20. Bb2 {[%clk 0:02:13.3]} 20... f5 {[%clk 0:01:26.1]} 21. Bxd4
{[%clk 0:02:02.1]} 21... exd4 {[%clk 0:01:21.8]} 22. Nd6 {[%clk 0:01:54.7]}
22... Bxg2 {[%clk 0:01:21.2]} 23. Kxg2 {[%clk 0:01:55.6]} 23... Qc6+ {[%clk
0:01:20.9]} 24. f3 {[%clk 0:01:56.1]} 24... Qxc5 {[%clk 0:00:55.3]} 25. Qb3+
{[%clk 0:01:54]} 25... Kh8 {[%clk 0:00:54.3]} 26. Nf7+ {[%clk 0:01:54]} 26...
Kg8 {[%clk 0:00:54.3]} 27. Nh6+ {[%clk 0:01:53.2]} 27... Kh8 {[%clk 0:00:54.1]}
28. Qg8+ {[%clk 0:01:53.7]} 1-0

[Event "*** Titled Tuesday Blitz"]
[Site "Chess.com"]
[Date "2020.04.21"]
[Round "7"]
[White "Shahinyan_ChessMood"]
[Black "LucaBrasi1968"]
[Result "1-0"]
[WhiteElo "2666"]
[BlackElo "2492"]
[TimeControl "180+1"]
[EndTime "11:19:17 PDT"]
[Termination "Shahinyan_ChessMood won by resignation"]

1. e4 {[%clk 0:03:00.9]} 1... c6 {[%clk 0:03:00]} 2. d4 {[%clk 0:03:00.6]} 2...
d5 {[%clk 0:03:00.9]} 3. exd5 {[%clk 0:03:01.5]} 3... cxd5 {[%clk 0:02:59.2]} 4.
Bd3 {[%clk 0:03:01.8]} 4... Nf6 {[%clk 0:02:59]} 5. c3 {[%clk 0:02:59.2]} 5...
Nc6 {[%clk 0:02:59.1]} 6. Bf4 {[%clk 0:02:59.2]} 6... Bg4 {[%clk 0:02:58.7]} 7.
Qb3 {[%clk 0:02:58.3]} 7... Qd7 {[%clk 0:02:58.9]} 8. Nd2 {[%clk 0:02:58.1]}
8... e6 {[%clk 0:02:58.6]} 9. Ngf3 {[%clk 0:02:58.7]} 9... Bd6 {[%clk
0:02:58.8]} 10. Bxd6 {[%clk 0:02:59.3]} 10... Qxd6 {[%clk 0:02:58.8]} 11. O-O
{[%clk 0:03:00]} 11... O-O {[%clk 0:02:56.3]} 12. Rae1 {[%clk 0:03:00.5]} 12...
Rab8 {[%clk 0:02:46.8]} 13. Ne5 {[%clk 0:02:58.1]} 13... Bh5 {[%clk 0:02:46.6]}
14. Qc2 {[%clk 0:02:27.7]} 14... Rbc8 {[%clk 0:02:41.5]} 15. Qb1 {[%clk
0:02:25.2]} 15... a6 {[%clk 0:02:36.1]} 16. f4 {[%clk 0:02:24]} 16... Bg6 {[%clk
0:02:33]} 17. Nxg6 {[%clk 0:02:20.4]} 17... hxg6 {[%clk 0:02:32.8]} 18. Qd1
{[%clk 0:02:11.2]} 18... b5 {[%clk 0:02:30.3]} 19. a3 {[%clk 0:02:11.4]} 19...
Rb8 {[%clk 0:02:29.5]} 20. Qe2 {[%clk 0:02:10.2]} 20... Ne7 {[%clk 0:02:25.6]}
21. Nf3 {[%clk 0:01:59.7]} 21... Qxf4 {[%clk 0:02:00.8]} 22. Ne5 {[%clk
0:01:59.3]} 22... Qg5 {[%clk 0:01:57.3]} 23. Rf3 {[%clk 0:01:56.7]} 23... Nf5
{[%clk 0:01:52.3]} 24. Rh3 {[%clk 0:01:53.8]} 24... Rfc8 {[%clk 0:01:40.6]} 25.
Nxf7 {[%clk 0:01:50.3]} 1-0

[Event "*** Titled Tuesday Blitz"]
[Site "Chess.com"]
[Date "2020.04.21"]
[Round "7"]
[White "varacalli"]
[Black "Qingdom"]
[Result "1-0"]
[WhiteElo "2342"]
[BlackElo "2190"]
[TimeControl "180+1"]
[EndTime "11:19:17 PDT"]
[Termination "varacalli won by resignation"]

1. d4 {[%clk 0:03:00.9]} 1... d5 {[%clk 0:02:59.5]} 2. Nf3 {[%clk 0:02:57.3]}
2... c5 {[%clk 0:02:58.7]} 3. c4 {[%clk 0:02:54.4]} 3... e6 {[%clk 0:02:58]} 4.
cxd5 {[%clk 0:02:54.1]} 4... exd5 {[%clk 0:02:57.7]} 5. g3 {[%clk 0:02:54.6]}
5... Nc6 {[%clk 0:02:57.2]} 6. Bg2 {[%clk 0:02:54.9]} 6... Bg4 {[%clk
0:02:55.7]} 7. Ne5 {[%clk 0:02:52.6]} 7... Nxe5 {[%clk 0:02:51.2]} 8. dxe5
{[%clk 0:02:52.3]} 8... Be6 {[%clk 0:02:49.8]} 9. Nc3 {[%clk 0:02:48.3]} 9...
Ne7 {[%clk 0:02:50]} 10. Bg5 {[%clk 0:02:45.7]} 10... Qb8 {[%clk 0:02:48.6]} 11.
f4 {[%clk 0:02:39.6]} 11... h6 {[%clk 0:02:42.1]} 12. Bxe7 {[%clk 0:02:38.4]}
12... Bxe7 {[%clk 0:02:42.3]} 13. Nxd5 {[%clk 0:02:32.1]} 13... Bd8 {[%clk
0:02:41.8]} 14. O-O {[%clk 0:02:27.9]} 14... O-O {[%clk 0:02:41.7]} 15. Rc1
{[%clk 0:02:26.5]} 15... b6 {[%clk 0:02:37.4]} 16. f5 {[%clk 0:02:18.5]} 16...
Bc8 {[%clk 0:02:31.3]} 17. f6 {[%clk 0:02:13.3]} 17... Qxe5 {[%clk 0:02:28.4]}
18. Ne7+ {[%clk 0:02:10.7]} 18... Bxe7 {[%clk 0:02:27.7]} 19. fxe7 {[%clk
0:02:10.9]} 19... Qe3+ {[%clk 0:02:17.5]} 20. Kh1 {[%clk 0:02:10.2]} 20... Qxe7
{[%clk 0:02:18.1]} 21. Bxa8 {[%clk 0:02:09.5]} 21... Bb7+ {[%clk 0:02:18.4]} 22.
Bxb7 {[%clk 0:02:09.4]} 22... Qxb7+ {[%clk 0:02:19.1]} 23. Kg1 {[%clk
0:02:09.5]} 23... Qa6 {[%clk 0:02:16.1]} 24. a3 {[%clk 0:02:06.6]} 24... Re8
{[%clk 0:02:16.1]} 25. Qd3 {[%clk 0:02:05.8]} 25... Qa4 {[%clk 0:02:12.8]} 26.
Rc4 {[%clk 0:02:00.8]} 26... Qc6 {[%clk 0:02:06]} 27. Qf3 {[%clk 0:01:59.2]}
27... Qe6 {[%clk 0:02:04.8]} 28. Rf4 {[%clk 0:01:56.4]} 28... f6 {[%clk
0:02:04.7]} 29. Rd1 {[%clk 0:01:50.8]} 29... Qxe2 {[%clk 0:02:02.6]} 30. Qxe2
{[%clk 0:01:50.7]} 30... Rxe2 {[%clk 0:02:02.2]} 31. Rf2 {[%clk 0:01:51.2]}
31... Re7 {[%clk 0:01:58.9]} 32. Rfd2 {[%clk 0:01:51.1]} 32... Kf7 {[%clk
0:01:58.1]} 33. Rd7 {[%clk 0:01:51]} 33... Ke6 {[%clk 0:01:58.6]} 34. Rxe7+
{[%clk 0:01:50.8]} 34... Kxe7 {[%clk 0:01:59.1]} 35. Kf2 {[%clk 0:01:51.5]}
35... Ke6 {[%clk 0:01:58.8]} 36. h4 {[%clk 0:01:52.2]} 36... g5 {[%clk 0:01:58]}
37. Kf3 {[%clk 0:01:52.6]} 37... f5 {[%clk 0:01:58.2]} 38. hxg5 {[%clk
0:01:52.4]} 38... hxg5 {[%clk 0:01:57.9]} 39. g4 {[%clk 0:01:52.8]} 39... fxg4+
{[%clk 0:01:45.1]} 40. Kxg4 {[%clk 0:01:51.1]} 40... c4 {[%clk 0:01:45.4]} 41.
Kxg5 {[%clk 0:01:50.9]} 41... Ke5 {[%clk 0:01:45.9]} 42. Kg4 {[%clk 0:01:50.7]}
42... Ke4 {[%clk 0:01:45.4]} 43. Rd7 {[%clk 0:01:47.5]} 43... a5 {[%clk
0:01:45.1]} 44. Rb7 {[%clk 0:01:45.9]} 44... c3 {[%clk 0:01:43.7]} 45. bxc3
{[%clk 0:01:45.1]} 45... Kd3 {[%clk 0:01:44.4]} 46. Rxb6 {[%clk 0:01:45.1]}
46... Kxc3 {[%clk 0:01:45.1]} 47. a4 {[%clk 0:01:45.4]} 1-0

[Event "*** Titled Tuesday Blitz"]
[Site "Chess.com"]
[Date "2020.04.21"]
[Round "7"]
[White "mitraasz"]
[Black "ADODOVE"]
[Result "1-0"]
[WhiteElo "2215"]
[BlackElo "1908"]
[TimeControl "180+1"]
[EndTime "11:19:20 PDT"]
[Termination "mitraasz won on time"]

1. d4 {[%clk 0:03:00.9]} 1... Nf6 {[%clk 0:02:59.7]} 2. Nf3 {[%clk 0:03:01.1]}
2... c5 {[%clk 0:02:55.3]} 3. c3 {[%clk 0:03:00.4]} 3... Qc7 {[%clk 0:02:45.4]}
4. g3 {[%clk 0:02:58.2]} 4... g6 {[%clk 0:02:39.7]} 5. Bf4 {[%clk 0:02:57.7]}
5... d6 {[%clk 0:02:37.4]} 6. Bg2 {[%clk 0:02:57.4]} 6... Nh5 {[%clk 0:02:26.7]}
7. Bd2 {[%clk 0:02:50.3]} 7... Bg7 {[%clk 0:02:15.9]} 8. O-O {[%clk 0:02:49.4]}
8... O-O {[%clk 0:02:15.3]} 9. e4 {[%clk 0:02:49.1]} 9... Bg4 {[%clk 0:02:04.1]}
10. h3 {[%clk 0:02:47.3]} 10... Bxf3 {[%clk 0:02:03.2]} 11. Bxf3 {[%clk
0:02:48]} 11... Nf6 {[%clk 0:02:03.1]} 12. Re1 {[%clk 0:02:48.1]} 12... e5
{[%clk 0:01:59.2]} 13. dxe5 {[%clk 0:02:44.9]} 13... dxe5 {[%clk 0:01:58.1]} 14.
Na3 {[%clk 0:02:45.6]} 14... Nc6 {[%clk 0:01:37.4]} 15. Qc2 {[%clk 0:02:38.7]}
15... Rad8 {[%clk 0:01:34.8]} 16. Rad1 {[%clk 0:02:37.1]} 16... Rd7 {[%clk
0:01:09.9]} 17. Be3 {[%clk 0:02:34.7]} 17... b6 {[%clk 0:01:05.7]} 18. Nb5
{[%clk 0:02:29.2]} 18... Qd8 {[%clk 0:01:01.4]} 19. Rxd7 {[%clk 0:02:27.9]}
19... Qxd7 {[%clk 0:01:00.7]} 20. Rd1 {[%clk 0:02:28.7]} 20... Qxh3 {[%clk
0:00:35.6]} 21. Rd6 {[%clk 0:02:25.1]} 1-0

[Event "*** Titled Tuesday Blitz"]
[Site "Chess.com"]
[Date "2020.04.21"]
[Round "7"]
[White "ftorodent"]
[Black "binbin239"]
[Result "1-0"]
[WhiteElo "2654"]
[BlackElo "2441"]
[TimeControl "180+1"]
[EndTime "11:19:27 PDT"]
[Termination "ftorodent won by resignation"]

1. d4 {[%clk 0:03:00.9]} 1... Nf6 {[%clk 0:02:59.2]} 2. c4 {[%clk 0:03:00.3]}
2... g6 {[%clk 0:02:58.8]} 3. Nc3 {[%clk 0:02:58.6]} 3... d5 {[%clk 0:02:59]} 4.
cxd5 {[%clk 0:02:57]} 4... Nxd5 {[%clk 0:02:59.3]} 5. e4 {[%clk 0:02:57.6]} 5...
Nxc3 {[%clk 0:02:59]} 6. bxc3 {[%clk 0:02:58.2]} 6... Bg7 {[%clk 0:02:59.6]} 7.
Bg5 {[%clk 0:02:58.1]} 7... c5 {[%clk 0:02:59.5]} 8. Rc1 {[%clk 0:02:58.1]} 8...
O-O {[%clk 0:02:55]} 9. d5 {[%clk 0:02:54.1]} 9... Qc7 {[%clk 0:02:46.6]} 10.
Nf3 {[%clk 0:02:44.5]} 10... Nd7 {[%clk 0:02:19]} 11. Bxe7 {[%clk 0:02:35.4]}
11... Re8 {[%clk 0:02:18.8]} 12. d6 {[%clk 0:02:31.5]} 12... Qa5 {[%clk
0:02:18.7]} 13. Qd2 {[%clk 0:01:55.3]} 13... Nb6 {[%clk 0:02:08.7]} 14. Be2
{[%clk 0:01:37.1]} 14... Be6 {[%clk 0:02:07.3]} 15. O-O {[%clk 0:01:21]} 15...
Qxa2 {[%clk 0:01:53.8]} 16. Qxa2 {[%clk 0:01:19.4]} 16... Bxa2 {[%clk
0:01:53.3]} 17. Bb5 {[%clk 0:01:19.2]} 17... Nc8 {[%clk 0:01:13]} 18. d7 {[%clk
0:01:06.5]} 18... Nxe7 {[%clk 0:01:12.2]} 19. dxe8=Q+ {[%clk 0:01:05.6]} 1-0

[Event "*** Titled Tuesday Blitz"]
[Site "Chess.com"]
[Date "2020.04.21"]
[Round "7"]
[White "Jadro9"]
[Black "benko_008"]
[Result "1-0"]
[WhiteElo "2707"]
[BlackElo "2511"]
[TimeControl "180+1"]
[EndTime "11:19:30 PDT"]
[Termination "Jadro9 won by resignation"]

1. e4 {[%clk 0:03:00.9]} 1... c5 {[%clk 0:02:59.1]} 2. Nf3 {[%clk 0:02:59.9]}
2... e6 {[%clk 0:02:58.9]} 3. b3 {[%clk 0:02:59.6]} 3... Nf6 {[%clk 0:02:56.4]}
4. e5 {[%clk 0:02:59]} 4... Ng8 {[%clk 0:02:53.3]} 5. Bb2 {[%clk 0:02:59.1]}
5... d5 {[%clk 0:02:53.1]} 6. exd6 {[%clk 0:02:58.3]} 6... Nf6 {[%clk
0:02:53.1]} 7. Bb5+ {[%clk 0:02:46.3]} 7... Bd7 {[%clk 0:02:45]} 8. Qe2 {[%clk
0:02:37.9]} 8... Bxd6 {[%clk 0:02:36.6]} 9. Bxd7+ {[%clk 0:02:38.1]} 9... Nbxd7
{[%clk 0:02:34.5]} 10. O-O {[%clk 0:02:38.3]} 10... O-O {[%clk 0:02:33.5]} 11.
d4 {[%clk 0:02:33.9]} 11... cxd4 {[%clk 0:02:31.6]} 12. Nxd4 {[%clk 0:02:33.8]}
12... Qb8 {[%clk 0:02:19]} 13. h3 {[%clk 0:02:31.6]} 13... a6 {[%clk 0:02:18.7]}
14. c4 {[%clk 0:02:31.4]} 14... Re8 {[%clk 0:02:18.5]} 15. Nc3 {[%clk
0:02:31.4]} 15... Qc7 {[%clk 0:02:18.3]} 16. Rfd1 {[%clk 0:02:29.2]} 16... Bh2+
{[%clk 0:02:17]} 17. Kh1 {[%clk 0:02:29.1]} 17... Bf4 {[%clk 0:02:16.1]} 18. Qf3
{[%clk 0:02:19.6]} 18... Rad8 {[%clk 0:02:13.7]} 19. Nce2 {[%clk 0:02:08.7]}
19... Bd6 {[%clk 0:02:01.2]} 20. Rac1 {[%clk 0:02:07.6]} 20... Bf8 {[%clk
0:01:56.7]} 21. a3 {[%clk 0:02:06]} 21... e5 {[%clk 0:01:51.7]} 22. Nf5 {[%clk
0:02:05.6]} 22... e4 {[%clk 0:01:51.5]} 23. Qe3 {[%clk 0:01:55.7]} 23... Bc5
{[%clk 0:01:48]} 24. Qg5 {[%clk 0:01:55.4]} 24... Bf8 {[%clk 0:01:34.5]} 25.
Nh6+ {[%clk 0:01:54.9]} 25... Kh8 {[%clk 0:01:34.6]} 26. Nxf7+ {[%clk
0:01:55.5]} 26... Kg8 {[%clk 0:01:34.8]} 27. Nxd8 {[%clk 0:01:54.4]} 27... Rxd8
{[%clk 0:01:31.1]} 28. Ng3 {[%clk 0:01:54.2]} 28... h6 {[%clk 0:01:24.7]} 29.
Qg6 {[%clk 0:01:53.2]} 29... Ne5 {[%clk 0:01:11.2]} 30. Bxe5 {[%clk 0:01:47.9]}
30... Rxd1+ {[%clk 0:01:10.7]} 31. Rxd1 {[%clk 0:01:48.3]} 31... Qxe5 {[%clk
0:01:11.3]} 32. Nf5 {[%clk 0:01:47.6]} 1-0

[Event "*** Titled Tuesday Blitz"]
[Site "Chess.com"]
[Date "2020.04.21"]
[Round "7"]
[White "Vice64"]
[Black "grunbergmihai"]
[Result "1-0"]
[WhiteElo "2529"]
[BlackElo "2371"]
[TimeControl "180+1"]
[EndTime "11:19:36 PDT"]
[Termination "Vice64 won by resignation"]

1. e4 {[%clk 0:03:00.9]} 1... Nf6 {[%clk 0:02:54.2]} 2. Nc3 {[%clk 0:03:00.9]}
2... d5 {[%clk 0:02:54.2]} 3. d3 {[%clk 0:02:58.5]} 3... dxe4 {[%clk 0:02:53.7]}
4. Nxe4 {[%clk 0:02:58.6]} 4... Nxe4 {[%clk 0:02:53.4]} 5. dxe4 {[%clk
0:02:59.5]} 5... Qxd1+ {[%clk 0:02:53.7]} 6. Kxd1 {[%clk 0:03:00.4]} 6... c6
{[%clk 0:02:53.2]} 7. c3 {[%clk 0:03:00]} 7... e5 {[%clk 0:02:53]} 8. Kc2 {[%clk
0:03:00.2]} 8... Bc5 {[%clk 0:02:52.4]} 9. Nf3 {[%clk 0:02:59.3]} 9... Bxf2
{[%clk 0:02:48.4]} 10. Nxe5 {[%clk 0:02:57.4]} 10... O-O {[%clk 0:02:48]} 11.
Bc4 {[%clk 0:02:56.6]} 11... Be6 {[%clk 0:02:30]} 12. Bxe6 {[%clk 0:02:54.7]}
12... fxe6 {[%clk 0:02:29.8]} 13. Rf1 {[%clk 0:02:49.5]} 13... Na6 {[%clk
0:02:28.3]} 14. b4 {[%clk 0:02:39.5]} 14... Bh4 {[%clk 0:02:14.8]} 15. Be3
{[%clk 0:02:36.1]} 15... Rfd8 {[%clk 0:02:03.6]} 16. Rad1 {[%clk 0:02:29.7]}
16... Bf6 {[%clk 0:02:01.7]} 17. Ng4 {[%clk 0:02:24.1]} 17... Rxd1 {[%clk
0:01:58]} 18. Nxf6+ {[%clk 0:02:24]} 18... gxf6 {[%clk 0:01:57.6]} 19. Rxd1
{[%clk 0:02:24]} 19... Rf8 {[%clk 0:01:41.5]} 20. Bh6 {[%clk 0:02:17.3]} 20...
Rc8 {[%clk 0:01:38]} 21. Be3 {[%clk 0:02:05.6]} 21... b6 {[%clk 0:01:30.5]} 22.
Rd6 {[%clk 0:02:04.9]} 22... Kf7 {[%clk 0:01:29.4]} 23. Rd7+ {[%clk 0:02:04.9]}
23... Kg6 {[%clk 0:01:26.6]} 24. Rxa7 {[%clk 0:02:04.5]} 24... Nc7 {[%clk
0:01:24.5]} 25. Bxb6 {[%clk 0:02:02.4]} 25... Nb5 {[%clk 0:01:24.4]} 26. Rd7
{[%clk 0:01:59.2]} 26... Ra8 {[%clk 0:01:21.4]} 27. Kb2 {[%clk 0:01:54.3]} 27...
h5 {[%clk 0:01:19.1]} 28. c4 {[%clk 0:01:49.3]} 28... Na3 {[%clk 0:01:09.5]} 29.
Kb3 {[%clk 0:01:49.6]} 29... Nb1 {[%clk 0:01:08.6]} 30. Rd1 {[%clk 0:01:44.3]}
30... Na3 {[%clk 0:00:54.6]} 31. Ba5 {[%clk 0:01:42.5]} 1-0